fUST/lending_fUST_20250222
["ID","MTS","AMOUNT","RATE_DAILY","PERIOD"]
[354011072,1740180635356,-500.0,0.00013698,2]
[354011073,1740180635366,-500.0,0.00013698,2]
[354011074,1740180635375,-500.0,0.00013698,2]
[354011075,1740180635384,-450.120155,0.00013699,2]
[354011076,1740180635393,-207.003218,0.00013699,2]
[354011077,1740180635403,-500.0,0.0001378,2]
[354011078,1740180635412,-500.0,0.0001378,2]
[354011079,1740180635422,-500.0,0.0001378,2]
[354011080,1740180635432,-285.56613833,0.0001378,2]
[354011081,1740180635441,-500.0,0.0001378,2]
[354011082,1740180635450,-500.0,0.0001378,2]
[354011083,1740180635461,-500.0,0.0001378,2]
[354011084,1740180635470,-500.0,0.0001378,2]
[354011085,1740180635480,-500.0,0.0001378,2]
[354011086,1740180635490,-500.0,0.0001378,2]
[354011087,1740180635500,-500.0,0.0001378,2]
[354011088,1740180635510,-500.0,0.0001378,2]
[354011089,1740180635519,-500.0,0.0001378,2]
[354011090,1740180635528,-500.0,0.0001378,2]
[354011091,1740180635537,-500.0,0.0001378,2]
[354011092,1740180635546,-500.0,0.0001378,2]
[354011093,1740180635556,-500.0,0.0001378,2]
[354011094,1740180635565,-500.0,0.0001378,2]
[354011095,1740180635574,-500.0,0.0001378,2]
[354011096,1740180635584,-200.0,0.0001378,2]
[354011097,1740180635594,-500.0,0.0001378,2]
[354011098,1740180635603,-500.0,0.0001378,2]
[354011099,1740180635613,-500.0,0.0001378,2]
[354011100,1740180635623,-500.0,0.0001378,2]
[354011101,1740180635632,-500.0,0.0001378,2]
[354011102,1740180635641,-500.0,0.0001378,2]
[354011103,1740180635650,-442.05072385,0.0001378,2]
[354011104,1740180635660,-500.0,0.0001378,2]
[354011105,1740180635670,-249.69230836,0.0001378,2]
[354011106,1740180635679,-501.57562474,0.0001378,2]
[354011107,1740180635689,-500.0,0.0001378,2]
[354011108,1740180635698,-500.0,0.0001378,2]
[354011109,1740180635708,-500.0,0.0001378,2]
[354011110,1740180635718,-635.03976938,0.0001378,2]
[354011111,1740180635727,-500.0,0.0001378,2]
[354011112,1740180635737,-500.0,0.0001378,2]
[354011113,1740180635746,-500.0,0.0001378,2]
[354011114,1740180635756,-503.13017325,0.0001378,2]
[354011115,1740180635766,-500.0,0.0001378,2]
[354011116,1740180635775,-500.0,0.0001378,2]
[354011117,1740180635784,-500.0,0.0001378,2]
[354011118,1740180635794,-500.0,0.0001378,2]
[354011119,1740180635804,-500.0,0.0001378,2]
[354011120,1740180635813,-500.0,0.0001378,2]
[354011121,1740180635822,-500.0,0.0001378,2]
[354011122,1740180635832,-501.73341867,0.0001378,2]
[354011123,1740180635842,-500.0,0.0001378,2]
[354011124,1740180635851,-427.27,0.0001378,2]
[354011125,1740180635861,-500.0,0.0001378,2]
[354011126,1740180635871,-500.0,0.0001378,2]
[354011127,1740180635881,-514.56,0.0001378,2]
[354011128,1740180635890,-502.92828678,0.0001378,2]
[354011129,1740180635900,-188.64852164,0.0001378,2]
[354011130,1740180635910,-500.0,0.0001378,2]
[354011131,1740180635919,-500.0,0.0001378,2]
[354011132,1740180635929,-500.0,0.0001378,2]
[354011133,1740180635939,-500.0,0.0001378,2]
[354011134,1740180635949,-500.0,0.0001378,2]
[354011135,1740180635958,-500.0,0.0001378,2]
[354011136,1740180635968,-524.36915512,0.0001378,2]
[354011137,1740180635977,-500.0,0.0001378,2]
[354011138,1740180635987,-500.0,0.0001378,2]
[354011139,1740180635997,-500.0,0.0001378,2]
[354011140,1740180636096,-500.0,0.0001378,2]
[354011141,1740180636106,-500.0,0.0001378,2]
[354011142,1740180636115,-500.0,0.0001378,2]
[354011143,1740180636126,-399.74790419,0.0001378,2]
[354011144,1740180636135,-500.0,0.0001378,2]
[354011145,1740180636145,-500.0,0.0001378,2]
[354011146,1740180636155,-500.0,0.0001378,2]
[354011147,1740180636164,-500.0,0.0001378,2]
[354011148,1740180636173,-500.0,0.0001378,2]
[354011149,1740180636182,-500.0,0.0001378,2]
[354011150,1740180636191,-500.0,0.0001378,2]
[354011151,1740180636201,-500.0,0.0001378,2]
[354011152,1740180636213,-500.0,0.0001378,2]
[354011153,1740180636222,-500.0,0.0001378,2]
[354011154,1740180636231,-500.0,0.0001378,2]
[354011155,1740180636241,-500.0,0.0001378,2]
[354011156,1740180636250,-500.0,0.0001378,2]
[354011157,1740180636260,-500.0,0.0001378,2]
[354011158,1740180636269,-500.0,0.0001378,2]
[354011159,1740180636279,-500.0,0.0001378,2]
[354011160,1740180636288,-500.0,0.0001378,2]
[354011161,1740180636298,-500.0,0.0001378,2]
[354011162,1740180636308,-500.0,0.0001378,2]
[354011163,1740180636317,-500.0,0.0001378,2]
[354011164,1740180636326,-558.18,0.0001378,2]
[354011165,1740180636335,-500.0,0.0001378,2]
[354011166,1740180636345,-500.0,0.0001378,2]
[354011167,1740180636354,-500.0,0.0001378,2]
[354011168,1740180636363,-500.0,0.0001378,2]
[354011169,1740180636372,-500.0,0.0001378,2]
[354011170,1740180636382,-500.0,0.0001378,2]
[354011171,1740180636391,-500.0,0.0001378,2]
[354011172,1740180636399,-500.0,0.0001378,2]
[354011173,1740180636409,-500.0,0.0001378,2]
[354011174,1740180636418,-500.0,0.0001378,2]
[354011175,1740180636428,-500.0,0.0001378,2]
[354011176,1740180636438,-500.0,0.0001378,2]
[354011177,1740180636447,-500.0,0.0001378,2]
[354011178,1740180636456,-500.0,0.0001378,2]
[354011179,1740180636467,-500.0,0.0001378,2]
[354011180,1740180636476,-152.02,0.0001378,2]
[354011181,1740180636486,-500.0,0.0001378,2]
[354011182,1740180636496,-161.15,0.0001378,2]
[354011183,1740180636505,-500.0,0.0001378,2]
[354011184,1740180636515,-500.0,0.0001378,2]
[354011185,1740180636524,-590.23,0.0001378,2]
[354011186,1740180636534,-500.0,0.0001378,2]
[354011187,1740180636543,-500.0,0.0001378,2]
[354011188,1740180636553,-500.0,0.0001378,2]
[354011189,1740180636562,-500.0,0.0001378,2]
[354011190,1740180636572,-544.86,0.0001378,2]
[354011191,1740180636582,-590.49,0.0001378,2]
[354011192,1740180636594,-646.81,0.0001378,2]
[354011193,1740180636603,-500.0,0.0001378,2]
[354011194,1740180636612,-737.62,0.0001378,2]
[354011195,1740180636622,-500.0,0.0001378,2]
[354011196,1740180636631,-626.74415443,0.0001378,2]
[354011197,1740180636640,-515.13833456,0.0001378,2]
[354011198,1740180636650,-500.0,0.0001378,2]
[354011199,1740180636659,-500.0,0.0001378,2]
[354011200,1740180636668,-500.60354051,0.0001378,2]
[354011201,1740180636678,-500.0,0.0001378,2]
[354011202,1740180636687,-500.0,0.0001378,2]
[354011203,1740180636697,-292.61,0.0001378,2]
[354011204,1740180636706,-1474.87,0.0001378,2]
[354011205,1740180636716,-500.48078696,0.0001378,2]
[354011206,1740180636724,-500.0,0.0001378,2]
[354011207,1740180636734,-500.0,0.0001378,2]
[354011208,1740180636743,-571.52,0.0001378,2]
[354011209,1740180636752,-582.68850843,0.0001378,2]
[354011210,1740180636762,-500.0,0.0001378,2]
[354011211,1740180636771,-500.0,0.0001378,2]
[354011212,1740180636780,-583.17267445,0.00013863,2]
[354011213,1740180636789,-517.99895411,0.00013863,2]
[354011214,1740180636799,-381.94097134,0.00013863,2]
[354011215,1740180636809,-500.0,0.00013863,2]
[354011216,1740180636818,-502.94796823,0.00013863,2]
[354011217,1740180636828,-500.0,0.00013863,2]
[354011218,1740180636837,-500.0,0.00013863,2]
[354011219,1740180636846,-513.46,0.00013863,2]
[354011220,1740180636856,-500.0,0.00013863,2]
[354011221,1740180636867,-170.02,0.00013863,2]
[354011222,1740180636877,-500.56,0.00013863,2]
[354011223,1740180636886,-265.54,0.00013863,2]
[354011224,1740180636895,-500.0,0.00013863,2]
[354011225,1740180636905,-500.0,0.00013863,2]
[354011226,1740180636914,-500.0,0.00013863,2]
[354011227,1740180636923,-500.0,0.00013863,2]
[354011228,1740180636932,-394.4,0.00013863,2]
[354011229,1740180636942,-500.0,0.00013863,2]
[354011230,1740180636951,-415.66146275,0.00013863,2]
[354011231,1740180636960,-500.0,0.00013863,2]
[354011232,1740180636969,-500.0,0.00013863,2]
[354011233,1740180636979,-737.62,0.00013863,2]
[354011234,1740180636988,-1474.87,0.00013863,2]
[354011235,1740180636997,-500.0,0.00013863,2]
[354011236,1740180637006,-500.0,0.00013863,2]
[354011237,1740180637016,-483.21,0.00013863,2]
[354011238,1740180637025,-355.163177,0.000139,2]
[354011239,1740180637034,-500.0,0.00013945,2]
[354011240,1740180637044,-500.0,0.00013945,2]
[354011241,1740180637053,-481.76,0.00013945,2]
[354011242,1740180637062,-500.0,0.00013945,2]
[354011243,1740180637071,-500.0,0.00013945,2]
[354011244,1740180637081,-500.0,0.00013945,2]
[354011245,1740180637090,-737.62,0.00013945,2]
[354011246,1740180637099,-1474.87,0.00013945,2]
[354011247,1740180637109,-500.0,0.00013945,2]
[354011248,1740180637118,-255.6117815,0.00013998,2]
[354011249,1740180637127,-501.31764236,0.00013998,2]
[354011250,1740180637136,-161.07563427,0.00013998,2]
[354011251,1740180637146,-151.08019201,0.00013998,2]
[354011252,1740180637155,-313.14615894,0.00013998,2]
[354011253,1740180637163,-277.91040784,0.00013998,2]
[354011254,1740180637172,-502.8792192,0.00013998,2]
[354011255,1740180637182,-500.0,0.00013998,2]
[354011256,1740180637191,-500.0,0.00013998,2]
[354011257,1740180637200,-500.0,0.00013998,2]
[354011258,1740180637211,-7438.69753278,0.00014008,2]
[354011259,1740180637220,-500.0,0.00014027,2]
[354011260,1740180637229,-394.12815373,0.00014027,2]
[354011261,1740180637239,-500.0,0.00014027,2]
[354011262,1740180637248,-500.0,0.00014027,2]
[354011263,1740180637258,-737.62,0.00014027,2]
[354011264,1740180637267,-1474.87,0.00014027,2]
[354011265,1740180637276,-152.0,0.00014034,2]
[354011266,1740180637286,-500.0,0.00014109,2]
[354011267,1740180637295,-500.0,0.00014109,2]
[354011268,1740180637304,-500.0,0.00014109,2]
[354011269,1740180637313,-737.62,0.00014109,2]
[354011270,1740180637323,-1474.87,0.00014109,2]
[354011271,1740180637332,-3532.7028307,0.00014142,2]
[354011272,1740180637341,-475.13,0.00014191,2]
[354011273,1740180637350,-339.54,0.00014191,2]
[354011274,1740180637359,-500.0,0.00014191,2]
[354011275,1740180637368,-737.62,0.00014191,2]
[354011276,1740180637378,-1474.87,0.00014191,2]
[354011277,1740180637387,-534.55119156,0.00014244,2]
[354011278,1740180637396,-500.0,0.00014273,2]
[354011279,1740180637405,-737.62,0.00014273,2]
[354011280,1740180637415,-1474.87,0.00014273,2]
[354011282,1740180637424,-500.0,0.00014356,2]
[354011284,1740180637434,-737.62,0.00014356,2]
[354011285,1740180637443,-1474.87,0.00014356,2]
[354011288,1740180637452,-1592.23838446,0.0001443,2]
[354011293,1740180637621,-367.89812471,0.0001443,2]
[354011294,1740180637633,-12000.37593129,0.0001443,2]
[354011295,1740180637644,-612.540291,0.0001443,2]
[354011303,1740180637823,-150.14276415,0.00013698,2]
[354011304,1740180637832,-500.0,0.00013698,2]
[354011305,1740180637841,-501.0818335,0.00013698,2]
[354011306,1740180637851,-4073.38847469,0.0001443,2]
[354011307,1740180637860,-500.0,0.00014438,2]
[354011308,1740180637870,-737.62,0.00014438,2]
[354011309,1740180637879,-1474.87,0.00014438,2]
[354011310,1740180637888,-3557.45026523,0.000145,2]
[354011311,1740180637900,-65471.53550096,0.000145,2]
[354011312,1740180637909,-164.96837701,0.00014501,2]
[354011313,1740180637918,-500.0,0.00014519,2]
[354011314,1740180637928,-500.0,0.00014519,2]
[354011316,1740180637937,-500.0,0.00014519,2]
[354011317,1740180637946,-500.0,0.00014519,2]
[354011319,1740180637955,-500.0,0.00014519,2]
[354011321,1740180637964,-500.0,0.00014519,2]
[354011322,1740180637974,-326.48,0.00014519,2]
[354011323,1740180637983,-500.0,0.00014519,2]
[354011324,1740180637992,-503.35067187,0.00014519,2]
[354011325,1740180638002,-501.56659436,0.00014519,2]
[354011326,1740180638011,-500.0,0.00014519,2]
[354011327,1740180638021,-500.0,0.00014519,2]
[354011328,1740180638030,-500.0,0.00014519,2]
[354011329,1740180638040,-500.0,0.00014519,2]
[354011330,1740180638048,-500.0,0.00014519,2]
[354011331,1740180638058,-500.0,0.00014519,2]
[354011332,1740180638067,-500.0,0.00014519,2]
[354011333,1740180638077,-500.0,0.00014519,2]
[354011334,1740180638086,-500.0,0.00014519,2]
[354011335,1740180638095,-500.0,0.00014519,2]
[354011336,1740180638104,-563.82022628,0.0001452,2]
[354011337,1740180638113,-737.62,0.0001452,2]
[354011338,1740180638122,-1474.87,0.0001452,2]
[354011339,1740180638132,-4136.00430682,0.00014584,2]
[354011340,1740180638145,-7965.06971346,0.00014584,2]
[354011341,1740180638156,-9499.47153349,0.00014584,2]
[354011342,1740180638183,-5839.20371356,0.00014584,2]
[354011343,1740180638194,-3782.50501255,0.00014584,2]
[354011344,1740180638207,-3149.55867426,0.00014584,2]
[354011345,1740180638218,-500.0,0.00014601,2]
[354011346,1740180638227,-500.0,0.00014601,2]
[354011347,1740180638236,-502.89752128,0.00014601,2]
[354011348,1740180638245,-500.0,0.00014601,2]
[354011349,1740180638254,-500.0,0.00014601,2]
[354011350,1740180638263,-500.0,0.00014601,2]
[354011351,1740180638272,-500.0,0.00014601,2]
[354011352,1740180638281,-170.70276006,0.00014601,2]
[354011353,1740180638290,-147.72064531,0.00014602,2]
[354011354,1740180638302,-589.89935469,0.00014602,2]
[354011355,1740180638312,-1474.87,0.00014602,2]
[354011356,1740180638322,-500.0,0.00014684,2]
[354011357,1740180638332,-500.0,0.00014684,2]
[354011358,1740180638341,-500.0,0.00014684,2]
[354011359,1740180638351,-737.62,0.00014684,2]
[354011360,1740180638360,-325.3201867,0.00014684,2]
[354011361,1740180638373,-1149.5498133,0.00014684,2]
[354011362,1740180638383,-546.5020344,0.00014699,2]
[354011363,1740180638394,-557.1188801,0.00014712,2]
[354011364,1740180638405,-737.62,0.00014767,2]
[354011365,1740180638414,-1474.87,0.00014767,2]
[354011366,1740180638424,-737.62,0.00014849,2]
[354011367,1740180638434,-1474.87,0.00014849,2]
[354011368,1740180638528,-501.56720477,0.0001489,2]
[354011369,1740180638537,-2162.18,0.000149,2]
[354011370,1740180638546,-3865.54823736,0.000149,2]
[354011558,1740180643135,-501.91098369,0.00013698,2]
[354011561,1740180643145,-240.59149491,0.00013698,2]
[354011819,1740180645982,-259.40850509,0.00013698,2]
[354011821,1740180645992,-502.06964993,0.00013698,2]
[354011823,1740180646001,-500.0,0.00013698,2]
[354011825,1740180646010,-500.0,0.00013698,2]
[354011827,1740180646019,-500.0,0.00014499,2]
[354011829,1740180646028,-500.0,0.00014499,2]
[354011831,1740180646037,-500.0,0.00014499,2]
[354011833,1740180646046,-443.73096422,0.00014499,2]
[354011835,1740180646055,-500.0,0.00014499,2]
[354011837,1740180646064,-500.0,0.00014499,2]
[354011839,1740180646074,-500.0,0.00014499,2]
[354011842,1740180646084,-500.0,0.00014499,2]
[354011845,1740180646093,-500.0,0.00014499,2]
[354011848,1740180646103,-500.0,0.00014499,2]
[354011851,1740180646112,-500.0,0.00014499,2]
[354011854,1740180646121,-500.0,0.00014499,2]
[354011857,1740180646130,-500.0,0.00014499,2]
[354011860,1740180646139,-540.31633973,0.00014499,2]
[354011864,1740180646156,-469.64307398,0.00014499,2]
[354011867,1740180646168,-500.0,0.00014499,2]
[354011870,1740180646178,-500.0,0.00014499,2]
[354011873,1740180646188,-500.0,0.00014499,2]
[354011876,1740180646198,-70664.08825564,0.000149,2]
[354011880,1740180646212,-851.62567513,0.000149,2]
[354015682,1740181243802,190.779953,9.041e-05,2]
[354015683,1740181646164,-300.0,0.00012733,2]
[354015684,1740181646200,-4110.57235043,0.00012734,2]
[354015692,1740181759201,-300.0,0.00012733,2]
[354015693,1740181759235,-14129.079,0.00012734,2]
[354015747,1740181832419,-336.05221996,0.00012734,2]
[354015750,1740181832432,-6324.29642961,0.00012734,2]
[354015752,1740181832442,-300.0,0.00013597,2]
[354015754,1740181832452,-172.588092,0.00013598,2]
[354015756,1740181832462,-38980.20807772,0.00013598,2]
[354015758,1740181832472,-500.0,0.00013673,2]
[354015760,1740181832482,-226.70181553,0.00013697,2]
[354015762,1740181832492,-160.41455158,0.00013697,2]
[354015765,1740181832502,-607.73811933,0.00013697,2]
[354015769,1740181832512,-500.0,0.00013698,2]
[354015771,1740181832522,-500.73113709,0.00013698,2]
[354015774,1740181832531,-500.0,0.00013698,2]
[354015776,1740181832541,-500.0,0.00013698,2]
[354015778,1740181832551,-500.0,0.00013698,2]
[354015781,1740181832560,-500.0,0.00013698,2]
[354015783,1740181832570,-501.28874201,0.00013698,2]
[354015785,1740181832579,-500.0,0.00013698,2]
[354015787,1740181832589,-500.0,0.00013698,2]
[354015789,1740181832598,-500.0,0.00013698,2]
[354015791,1740181832609,-268.55399861,0.00013698,2]
[354015792,1740181832620,-500.0,0.00013698,2]
[354015795,1740181832630,-500.0,0.00013698,2]
[354015797,1740181832639,-500.0,0.00013698,2]
[354015799,1740181832650,-500.0,0.00013698,2]
[354015801,1740181832660,-500.48025026,0.00013698,2]
[354015803,1740181832670,-500.0,0.00013698,2]
[354015805,1740181832679,-500.0,0.00013698,2]
[354015807,1740181832692,-500.0,0.00013698,2]
[354015809,1740181832703,-500.0,0.00013698,2]
[354015811,1740181832712,-500.0,0.00013698,2]
[354015813,1740181832721,-500.0,0.00013698,2]
[354015815,1740181832730,-500.0,0.00013698,2]
[354015817,1740181832741,-500.0,0.00013698,2]
[354015819,1740181832750,-500.0,0.00013698,2]
[354015821,1740181832760,-500.0,0.00013698,2]
[354015823,1740181832770,-500.0,0.00013698,2]
[354015825,1740181832780,-500.0,0.00013698,2]
[354015827,1740181832789,-500.0,0.00013698,2]
[354015829,1740181832799,-500.0,0.00013698,2]
[354015831,1740181832808,-500.0,0.00013698,2]
[354015833,1740181832817,-500.0,0.00013698,2]
[354015835,1740181832827,-500.0,0.00013698,2]
[354015837,1740181832836,-500.0,0.00013698,2]
[354015839,1740181832846,-500.0,0.00013698,2]
[354015841,1740181832855,-500.0,0.00013698,2]
[354015843,1740181832864,-355.12603858,0.00013698,2]
[354015845,1740181832874,-317.46682443,0.00013698,2]
[354015847,1740181832883,-500.0,0.00013698,2]
[354015849,1740181832892,-500.0,0.00013698,2]
[354015851,1740181832902,-500.0,0.00013698,2]
[354015854,1740181832913,-500.0,0.00013698,2]
[354015855,1740181832922,-500.0,0.00013698,2]
[354015857,1740181832932,-500.0,0.00013698,2]
[354015860,1740181832943,-500.0,0.00013698,2]
[354015862,1740181832952,-494.13353675,0.00013698,2]
[354015864,1740181832962,-500.0,0.00013698,2]
[354015865,1740181832971,-500.0,0.00013698,2]
[354015868,1740181832981,-500.0,0.00013698,2]
[354015870,1740181832991,-500.0,0.00013698,2]
[354015872,1740181833001,-500.0,0.00013698,2]
[354015874,1740181833010,-500.0,0.00013698,2]
[354015876,1740181833020,-500.0,0.00013698,2]
[354015878,1740181833030,-501.82106871,0.00013698,2]
[354015880,1740181833039,-500.0,0.00013698,2]
[354015882,1740181833049,-500.0,0.00013698,2]
[354015884,1740181833058,-500.0,0.00013698,2]
[354015886,1740181833068,-500.0,0.00013698,2]
[354015888,1740181833078,-500.0,0.00013698,2]
[354015890,1740181833087,-500.0,0.00013698,2]
[354015892,1740181833097,-124.9464194,0.00013698,2]
[354015894,1740181833112,-375.0535806,0.00013698,2]
[354015897,1740181833122,-500.0,0.00013698,2]
[354015899,1740181833132,-500.0,0.00013698,2]
[354015901,1740181833141,-500.0,0.00013698,2]
[354015903,1740181833150,-500.0,0.00013698,2]
[354015905,1740181833159,-500.45804232,0.00013698,2]
[354015907,1740181833169,-500.0,0.00013698,2]
[354015909,1740181833179,-503.12852159,0.00013698,2]
[354015911,1740181833190,-500.0,0.00013698,2]
[354015913,1740181833199,-500.0,0.00013698,2]
[354015915,1740181833208,-500.0,0.00013698,2]
[354015917,1740181833218,-500.0,0.00013698,2]
[354015919,1740181833228,-500.0,0.00013698,2]
[354015921,1740181833237,-501.54010765,0.00013698,2]
[354015923,1740181833246,-500.0,0.00013698,2]
[354015925,1740181833256,-295.17803019,0.00013698,2]
[354015927,1740181833266,-500.0,0.00013698,2]
[354015929,1740181833275,-500.0,0.00013698,2]
[354015931,1740181833285,-500.0,0.00013698,2]
[354015933,1740181833295,-500.0,0.00013698,2]
[354015935,1740181833304,-500.0,0.00013698,2]
[354015937,1740181833313,-503.13601107,0.00013698,2]
[354015939,1740181833323,-512.00120995,0.00013698,2]
[354015941,1740181833332,-500.0,0.00013698,2]
[354015943,1740181833341,-500.0,0.00013698,2]
[354015945,1740181833350,-594.02770827,0.00013698,2]
[354015947,1740181833360,-500.0,0.00013698,2]
[354015949,1740181833370,-524.52,0.00013698,2]
[354015951,1740181833379,-500.0,0.00013698,2]
[354015953,1740181833388,-500.0,0.00013698,2]
[354015955,1740181833397,-367.29442336,0.00013698,2]
[354015957,1740181833406,-500.0,0.00013698,2]
[354015959,1740181833415,-166.8832579,0.00013698,2]
[354015961,1740181833425,-501.46024624,0.00013698,2]
[354015963,1740181833434,-500.0,0.00013698,2]
[354015965,1740181833444,-503.16522921,0.00013698,2]
[354015967,1740181833454,-599.32792028,0.00013698,2]
[354015969,1740181833464,-500.0,0.00013698,2]
[354015971,1740181833473,-500.0,0.00013698,2]
[354015973,1740181833482,-288.22511137,0.00013698,2]
[354015985,1740181833592,-211.77488863,0.00013698,2]
[354015987,1740181833602,-227.47184614,0.00013698,2]
[354015989,1740181833618,-322.67150146,0.00013698,2]
[354015991,1740181833628,-500.0,0.00013698,2]
[354015993,1740181833639,-253.62,0.00013698,2]
[354015996,1740181833650,-500.0,0.00013698,2]
[354015998,1740181833661,-500.0,0.00013698,2]
[354016000,1740181833671,-500.0,0.00013698,2]
[354016002,1740181833681,-500.0,0.00013698,2]
[354016004,1740181833693,-500.0,0.00013698,2]
[354016006,1740181833703,-500.0,0.00013698,2]
[354016007,1740181833713,-500.0,0.00013698,2]
[354016009,1740181833723,-500.0,0.00013698,2]
[354016010,1740181833733,-500.0,0.00013698,2]
[354016012,1740181833743,-500.0,0.00013698,2]
[354016013,1740181833752,-500.0,0.00013698,2]
[354016015,1740181833762,-500.0,0.00013698,2]
[354016016,1740181833772,-500.0,0.00013698,2]
[354016017,1740181833782,-500.0,0.00013698,2]
[354016018,1740181833792,-1000.0,0.00013698,2]
[354016019,1740181833802,-500.0,0.00013698,2]
[354016020,1740181833811,-500.0,0.00013698,2]
[354016021,1740181833822,-500.0,0.00013698,2]
[354016022,1740181833831,-500.0,0.00013698,2]
[354016023,1740181833841,-500.0,0.00013698,2]
[354016024,1740181833850,-295.48226437,0.00013698,2]
[354016025,1740181833859,-500.0,0.00013698,2]
[354016026,1740181833868,-500.0,0.00013698,2]
[354016027,1740181833878,-500.0,0.00013698,2]
[354016028,1740181833890,-500.0,0.00013698,2]
[354016029,1740181833899,-500.0,0.00013698,2]
[354016030,1740181833909,-500.0,0.00013698,2]
[354016031,1740181833919,-500.0,0.00013698,2]
[354016032,1740181833929,-500.0,0.00013698,2]
[354016033,1740181833939,-501.27101766,0.00013698,2]
[354016034,1740181833949,-500.0,0.00013698,2]
[354016035,1740181833958,-500.0,0.00013698,2]
[354016036,1740181833969,-500.0,0.00013698,2]
[354016037,1740181833979,-342.54820576,0.00013698,2]
[354016038,1740181833989,-500.0,0.00013698,2]
[354016039,1740181833999,-501.37028032,0.00013698,2]
[354016040,1740181834009,-500.0,0.00013698,2]
[354016041,1740181834020,-500.0,0.00013698,2]
[354016042,1740181834030,-500.0,0.00013698,2]
[354016043,1740181834040,-401.70250829,0.00013698,2]
[354016044,1740181834050,-500.0,0.00013698,2]
[354016045,1740181834060,-550.42829242,0.00013698,2]
[354016046,1740181834071,-500.0,0.00013698,2]
[354016047,1740181834080,-500.0,0.00013698,2]
[354016048,1740181834203,-500.0,0.00013698,2]
[354016049,1740181834213,-500.0,0.00013698,2]
[354016050,1740181834224,-500.0,0.00013698,2]
[354016051,1740181834234,-500.0,0.00013698,2]
[354016052,1740181834244,-500.0,0.00013698,2]
[354016053,1740181834254,-500.0,0.00013698,2]
[354016054,1740181834263,-500.0,0.00013698,2]
[354016055,1740181834273,-500.0,0.00013698,2]
[354016056,1740181834284,-500.0,0.00013698,2]
[354016057,1740181834294,-500.0,0.00013698,2]
[354016058,1740181834304,-500.0,0.00013698,2]
[354016059,1740181834314,-500.0,0.00013698,2]
[354016060,1740181834324,-500.0,0.00013698,2]
[354016061,1740181834334,-500.0,0.00013698,2]
[354016062,1740181834344,-500.0,0.00013698,2]
[354016063,1740181834354,-500.0,0.00013698,2]
[354016064,1740181834363,-500.0,0.00013698,2]
[354016065,1740181834374,-500.0,0.00013698,2]
[354016066,1740181834384,-500.0,0.00013698,2]
[354016067,1740181834394,-500.0,0.00013698,2]
[354016068,1740181834403,-500.0,0.00013698,2]
[354016069,1740181834413,-500.55829938,0.00013698,2]
[354016070,1740181834423,-500.0,0.00013698,2]
[354016071,1740181834432,-500.0,0.00013698,2]
[354016072,1740181834443,-500.0,0.00013698,2]
[354016073,1740181834453,-500.0,0.00013698,2]
[354016074,1740181834462,-500.0,0.00013698,2]
[354016075,1740181834472,-500.0,0.00013698,2]
[354016076,1740181834482,-500.0,0.00013698,2]